[Event "50+ Deutsche Senioren-Mannschaftsmeisterschaft der Landesverbände 2022"]
[Site "Magdeburg, Germany"]
[Date "2022.08.30"]
[Round "2.1"]
[White "Cordts, Ingo"]
[Black "Ploetz, Werner, Dr."]
[Result "1/2-1/2"]
[TimeControl "90min/40 + 30min + 30s/Zug"]
[WhiteElo "2223"]
[BlackElo "2250"]

1. Nf3 {[%emt 00:00:18]} Nf6 2. c4 {[%emt 00:00:03]} e6 {[%emt 00:00:18]} 3. g3
{[%emt 00:00:24]} d5 {[%emt 00:00:04]} 4. d4 {[%emt 00:00:12]} Be7 {[%emt
00:00:14]} 5. Bg2 {[%emt 00:00:24]} O-O {[%emt 00:00:40]} 6. Nc3 dxc4 {[%emt
00:04:04]} 7. Ne5 Nc6 {[%emt 00:02:59]} 8. Bxc6 bxc6 {[%emt 00:00:07]} 9. Nxc6
{[%emt 00:00:14]} Qe8 {[%emt 00:04:48]} 10. Nxe7+ {[%emt 00:00:26]} Qxe7 {[%emt
00:00:10]} 11. Qa4 {[%emt 00:00:06]} e5 {[%emt 00:08:27]} 12. dxe5 {[%emt
00:00:47]} Qxe5 {[%emt 00:01:07]} 13. Qxc4 {[%emt 00:02:22]} Bh3 {[%emt
00:09:30]} 14. Qf4 {[%emt 00:05:10]} Qa5 {[%emt 00:05:33]} 15. Qh4 {[%emt
00:18:27]} Bg2 {[%emt 00:03:00]} 16. Rg1 {[%emt 00:04:25]} Bc6 {[%emt 00:07:22]}
17. Qc4 {[%emt 00:09:06]} Bd7 {[%emt 00:06:09]} 18. Bf4 {[%emt 00:03:12]} Rfe8
{[%emt 00:08:56]} 19. O-O-O {[%emt 00:08:04]} Be6 {[%emt 00:08:39]} 20. Qc6
{[%emt 00:17:40]} Qh5 {[%emt 00:08:14]} 21. h4 {[%emt 00:03:14]} Rab8 {[%emt
00:01:38]} 22. Rd2 {[%emt 00:06:03]} h6 {[%emt 00:02:00]} 23. Rgd1 {[%emt
00:02:09]} Rb4 {[%emt 00:02:20]} 24. Rd8 {[%emt 00:06:23]} Rxd8 {[%emt
00:00:11]} 25. Rxd8+ {[%emt 00:00:34]} Kh7 26. Qa8 {[%emt 00:02:30]} Qa5 {[%emt
00:04:31]} 27. Rh8+ {[%emt 00:01:03]} Kg6 {[%emt 00:00:20]} 28. Qf8 {[%emt
00:01:09]} Rc4 {[%emt 00:01:55]} 29. Rxh6+ {[%emt 00:01:03]} Kf5 {[%emt
00:01:02]} 30. Qxg7 {[%emt 00:06:57]} Rxc3+ {[%emt 00:00:45]} 31. bxc3 {[%emt
00:00:18]} Qxc3+ {[%emt 00:00:22]} 32. Kd1 {[%emt 00:01:16]} Bb3+ {[%emt
00:01:11]} 33. axb3 {[%emt 00:00:15]} Qxb3+ 34. Kc1 {[%emt 00:00:44]} Qc3+
{[%emt 00:00:03]} 35. Kd1 {[%emt 00:01:00]} Qb3+ {[%emt 00:00:18]} 36. Kc1
{[%emt 00:00:04]} Qc3+ {[%emt 00:00:09]} 37. Kd1 {[%emt 00:01:02]} 1/2-1/2

[Event "50+ Deutsche Senioren-Mannschaftsmeisterschaft der Landesverbände 2022"]
[Site "Magdeburg, Germany"]
[Date "2022.08.30"]
[Round "2.2"]
[White "Schnelzer, Reinhold, Dr."]
[Black "Paris, Michael"]
[Result "1-0"]
[TimeControl "90min/40 + 30min + 30s/Zug"]
[WhiteElo "2143"]
[BlackElo "2177"]

1. d4 {[%emt 00:00:51]} d5 {[%emt 00:00:58]} 2. c4 {[%emt 00:00:24]} e6 {[%emt
00:00:24]} 3. Nc3 c5 {[%emt 00:00:53]} 4. cxd5 {[%emt 00:01:00]} cxd4 {[%emt
00:00:31]} 5. Qa4+ {[%emt 00:04:47]} Bd7 {[%emt 00:00:28]} 6. Qxd4 {[%emt
00:00:45]} exd5 7. Qxd5 {[%emt 00:01:01]} Nc6 {[%emt 00:02:21]} 8. Nf3 {[%emt
00:07:24]} Nf6 {[%emt 00:01:17]} 9. Qd1 {[%emt 00:00:29]} Qb6 {[%emt 00:04:06]}
10. e3 {[%emt 00:07:34]} Bb4 {[%emt 00:12:34]} 11. Bd2 {[%emt 00:11:02]} O-O
{[%emt 00:05:41]} 12. Be2 {[%emt 00:01:31]} Bg4 {[%emt 00:03:35]} 13. O-O {[%emt
00:08:12]} Rfd8 {[%emt 00:02:17]} 14. Qc2 {[%emt 00:02:01]} Rac8 {[%emt
00:10:21]} 15. Rfd1 {[%emt 00:07:22]} Ne7 {[%emt 00:21:27]} 16. Be1 {[%emt
00:06:27]} Nfd5 {[%emt 00:08:14]} 17. Nxd5 {[%emt 00:16:35]} Nxd5 {[%emt
00:00:08]} 18. Qb3 {[%emt 00:03:29]} Bxe1 {[%emt 00:05:27]} 19. Rxe1 {[%emt
00:00:37]} Qxb3 {[%emt 00:03:52]} 20. axb3 {[%emt 00:00:36]} a6 {[%emt
00:00:03]} 21. h3 {[%emt 00:04:38]} Bd7 {[%emt 00:05:09]} 22. Red1 {[%emt
00:02:10]} Be8 {[%emt 00:01:26]} 23. Rac1 {[%emt 00:01:07]} Rb8 {[%emt
00:03:43]} 24. Rd4 {[%emt 00:02:28]} Nf6 {[%emt 00:00:27]} 25. Kf1 {[%emt
00:01:03]} Kf8 {[%emt 00:00:14]} 26. Rxd8 {[%emt 00:01:18]} Rxd8 {[%emt
00:00:08]} 27. Nd4 {[%emt 00:00:06]} Ne4 {[%emt 00:03:09]} 28. Ke1 {[%emt
00:00:04]} Rb8 {[%emt 00:01:41]} 29. Rc7 {[%emt 00:01:18]} b6 {[%emt 00:00:36]}
30. f3 {[%emt 00:05:10]} Nf6 {[%emt 00:02:10]} 31. Kd2 {[%emt 00:01:27]} Nd5
{[%emt 00:00:44]} 32. Ra7 {[%emt 00:00:59]} a5 {[%emt 00:00:13]} 33. Bc4 {[%emt
00:00:48]} Nb4 {[%emt 00:00:25]} 34. Ke2 {[%emt 00:01:06]} h6 {[%emt 00:00:56]}
35. h4 {[%emt 00:00:47]} b5 {[%emt 00:00:07]} 36. Bd3 {[%emt 00:00:25]} a4
{[%emt 00:00:06]} 37. Be4 {[%emt 00:00:28]} axb3 {[%emt 00:00:10]} 38. Nxb3
{[%emt 00:00:16]} Bc6 {[%emt 00:00:23]} 39. Bxc6 {[%emt 00:00:12]} Nxc6 {[%emt
00:00:13]} 40. Rc7 {[%emt 00:00:11]} Ne5 {[%emt 00:00:15]} 41. Nd4 {[%emt
00:01:25]} Nc4 {[%emt 00:02:00]} 42. b3 {[%emt 00:01:22]} Nd6 {[%emt 00:03:50]}
43. g4 {[%emt 00:04:33]} Ke8 {[%emt 00:02:36]} 44. e4 {[%emt 00:01:07]} Kf8
{[%emt 00:05:14]} 45. Ke3 {[%emt 00:03:54]} g6 {[%emt 00:07:15]} 46. Rc5 {[%emt
00:04:05]} f6 {[%emt 00:04:13]} 47. Rd5 {[%emt 00:05:08]} Rb6 {[%emt 00:01:08]}
48. f4 {[%emt 00:00:34]} b4 {[%emt 00:01:07]} 49. e5 {[%emt 00:00:43]} fxe5
{[%emt 00:00:48]} 50. fxe5 {[%emt 00:00:37]} Ne8 {[%emt 00:00:04]} 51. Rb5
{[%emt 00:02:13]} Rxb5 {[%emt 00:02:26]} 52. Nxb5 {[%emt 00:00:17]} h5 {[%emt
00:00:29]} 53. gxh5 {[%emt 00:01:31]} Ng7 {[%emt 00:01:23]} 54. hxg6 {[%emt
00:01:13]} Nf5+ {[%emt 00:00:23]} 55. Kf4 {[%emt 00:00:37]} Nxh4 {[%emt
00:00:29]} 56. Kg5 {[%emt 00:00:14]} Nf3+ {[%emt 00:00:31]} 57. Kf6 {[%emt
00:01:56]} Nd2 {[%emt 00:00:09]} 58. Nd6 {[%emt 00:00:20]} 1-0

[Event "50+ Deutsche Senioren-Mannschaftsmeisterschaft der Landesverbände 2022"]
[Site "Magdeburg, Germany"]
[Date "2022.08.30"]
[Round "2.3"]
[White "Lindam, Ingo"]
[Black "Kraemer, Max"]
[Result "1-0"]
[TimeControl "90min/40 + 30min + 30s/Zug"]
[WhiteElo "2130"]
[BlackElo "2059"]

1. d4 {[%emt 00:02:55]} e6 {[%emt 00:00:14]} 2. e4 {[%emt 00:00:43]} d5 3. Nd2
a6 4. Ngf3 {[%emt 00:01:44]} Nf6 {[%emt 00:00:03]} 5. Bd3 {[%emt 00:04:38]} c5
{[%emt 00:00:43]} 6. dxc5 {[%emt 00:09:15]} Bxc5 {[%emt 00:03:07]} 7. O-O dxe4
{[%emt 00:01:43]} 8. Nxe4 {[%emt 00:00:37]} Nxe4 {[%emt 00:00:31]} 9. Bxe4
{[%emt 00:00:21]} Qxd1 {[%emt 00:00:36]} 10. Rxd1 {[%emt 00:00:32]} Nd7 {[%emt
00:05:09]} 11. Nd4 {[%emt 00:06:08]} Nf6 {[%emt 00:11:31]} 12. Bf3 {[%emt
00:05:16]} O-O {[%emt 00:02:58]} 13. Bg5 {[%emt 00:05:02]} Re8 {[%emt 00:09:56]}
14. Nb3 {[%emt 00:03:52]} Bf8 {[%emt 00:05:25]} 15. Na5 {[%emt 00:10:10]} e5
{[%emt 00:04:13]} 16. Bxf6 {[%emt 00:09:48]} gxf6 {[%emt 00:00:30]} 17. Bd5
{[%emt 00:02:20]} Bb4 {[%emt 00:04:17]} 18. Nc4 {[%emt 00:10:40]} Rb8 {[%emt
00:12:26]} 19. Rd3 {[%emt 00:02:24]} b5 {[%emt 00:05:56]} 20. Ne3 {[%emt
00:04:07]} Be6 {[%emt 00:04:33]} 21. Rad1 {[%emt 00:03:59]} f5 {[%emt 00:06:28]}
22. Bc6 {[%emt 00:03:47]} Re7 {[%emt 00:03:34]} 23. a3 {[%emt 00:02:09]} Bc5
{[%emt 00:00:53]} 24. Nd5 {[%emt 00:01:18]} Bxd5 {[%emt 00:02:08]} 25. Rxd5
{[%emt 00:00:56]} Bb6 {[%emt 00:02:01]} 26. c3 {[%emt 00:01:19]} Kg7 {[%emt
00:02:40]} 27. Kf1 {[%emt 00:01:32]} f4 {[%emt 00:00:30]} 28. Rd7 {[%emt
00:00:30]} Rxd7 {[%emt 00:02:11]} 29. Rxd7 {[%emt 00:00:05]} Rd8 {[%emt
00:00:39]} 30. Rxd8 {[%emt 00:03:04]} Bxd8 {[%emt 00:00:27]} 31. Ke2 {[%emt
00:00:14]} Kf6 {[%emt 00:00:30]} 32. b4 {[%emt 00:02:00]} Ke6 {[%emt 00:00:46]}
33. Bb7 {[%emt 00:00:32]} Kd6 {[%emt 00:01:37]} 34. Bxa6 {[%emt 00:00:30]} Kc6
{[%emt 00:00:06]} 35. c4 {[%emt 00:00:47]} bxc4 {[%emt 00:00:20]} 36. Bxc4
{[%emt 00:00:04]} f6 {[%emt 00:01:23]} 37. f3 {[%emt 00:01:07]} Bb6 {[%emt
00:02:19]} 38. Kd3 {[%emt 00:00:16]} Bd4 {[%emt 00:00:36]} 39. a4 {[%emt
00:00:33]} Kb6 {[%emt 00:00:52]} 40. Be6 {[%emt 00:01:53]} h5 41. Kc4 {[%emt
00:00:54]} h4 {[%emt 00:02:07]} 42. h3 {[%emt 00:00:19]} Bf2 {[%emt 00:01:29]}
43. a5+ {[%emt 00:05:03]} Kb7 {[%emt 00:05:40]} 44. Kb5 {[%emt 00:03:29]} Be1
{[%emt 00:00:40]} 45. Bd5+ {[%emt 00:00:40]} Ka7 {[%emt 00:01:07]} 46. Ka4
{[%emt 00:00:52]} Bd2 {[%emt 00:03:56]} 47. b5 {[%emt 00:00:39]} f5 {[%emt
00:06:49]} 48. b6+ {[%emt 00:01:10]} Ka6 {[%emt 00:00:07]} 49. Bc4+ {[%emt
00:00:43]} Kb7 50. Kb5 {[%emt 00:00:21]} 1-0

[Event "50+ Deutsche Senioren-Mannschaftsmeisterschaft der Landesverbände 2022"]
[Site "Magdeburg, Germany"]
[Date "2022.08.30"]
[Round "2.4"]
[White "Greul, Hans"]
[Black "Kesseler, Heiko"]
[Result "1-0"]
[TimeControl "90min/40 + 30min + 30s/Zug"]
[WhiteElo "2016"]
[BlackElo "2019"]

1. d4 c5 {[%emt 00:06:44]} 2. Nf3 {[%emt 00:01:16]} cxd4 {[%emt 00:00:30]} 3.
Nxd4 {[%emt 00:00:18]} d5 {[%emt 00:00:09]} 4. e3 {[%emt 00:00:15]} Nf6 {[%emt
00:01:31]} 5. c4 {[%emt 00:03:10]} e6 {[%emt 00:07:07]} 6. Nc3 {[%emt 00:01:30]}
a6 {[%emt 00:06:16]} 7. cxd5 {[%emt 00:04:01]} Nxd5 {[%emt 00:00:58]} 8. Bd2
{[%emt 00:03:50]} Nf6 {[%emt 00:10:51]} 9. Be2 {[%emt 00:01:51]} Bc5 {[%emt
00:03:42]} 10. Nb3 {[%emt 00:02:10]} Ba7 {[%emt 00:00:43]} 11. O-O {[%emt
00:02:45]} Nc6 {[%emt 00:01:22]} 12. Rc1 {[%emt 00:02:04]} O-O {[%emt 00:00:40]}
13. Qc2 {[%emt 00:00:26]} Bd7 {[%emt 00:05:48]} 14. Ne4 {[%emt 00:05:03]} Nxe4
{[%emt 00:13:31]} 15. Qxe4 {[%emt 00:00:06]} f5 {[%emt 00:00:46]} 16. Qf3 {[%emt
00:11:09]} Rc8 {[%emt 00:01:15]} 17. Rfd1 {[%emt 00:07:22]} Bb8 {[%emt
00:03:28]} 18. Nc5 {[%emt 00:06:50]} Ne5 {[%emt 00:04:05]} 19. Qh3 {[%emt
00:03:36]} Qe7 {[%emt 00:06:14]} 20. Nxd7 {[%emt 00:03:25]} Rxc1 {[%emt
00:00:44]} 21. Bxc1 {[%emt 00:02:06]} Nxd7 {[%emt 00:00:07]} 22. g3 {[%emt
00:09:56]} Nc5 {[%emt 00:03:50]} 23. Qf1 {[%emt 00:01:43]} b5 {[%emt 00:01:26]}
24. Qe1 {[%emt 00:00:47]} Rd8 {[%emt 00:01:53]} 25. b3 {[%emt 00:01:35]} Rxd1
{[%emt 00:05:49]} 26. Qxd1 {[%emt 00:00:41]} Ne4 {[%emt 00:02:07]} 27. Bb2
{[%emt 00:01:20]} Qd6 {[%emt 00:00:53]} 28. Qa1 {[%emt 00:05:34]} Qd2 {[%emt
00:01:46]} 29. Kf1 {[%emt 00:00:24]} Qd7 {[%emt 00:02:44]} 30. Qc1 {[%emt
00:02:03]} Qc7 {[%emt 00:02:02]} 31. Qxc7 {[%emt 00:00:38]} Bxc7 32. f3 {[%emt
00:00:42]} Nc5 {[%emt 00:01:33]} 33. Bd4 {[%emt 00:00:29]} Nd7 {[%emt 00:00:35]}
34. a4 {[%emt 00:01:05]} bxa4 {[%emt 00:01:55]} 35. bxa4 {[%emt 00:00:03]} a5
{[%emt 00:00:32]} 36. Bb5 {[%emt 00:00:14]} Ne5 {[%emt 00:00:58]} 37. Ke2 {[%emt
00:00:45]} Kf7 38. h3 {[%emt 00:00:34]} Ng6 {[%emt 00:01:02]} 39. g4 {[%emt
00:00:35]} f4 {[%emt 00:01:03]} 40. Bd3 {[%emt 00:02:22]} fxe3 {[%emt 00:02:39]}
41. Bxg6+ {[%emt 00:00:48]} Kxg6 {[%emt 00:00:33]} 42. Bxe3 {[%emt 00:01:37]}
Kf6 {[%emt 00:00:55]} 43. Kd3 {[%emt 00:03:05]} Ke5 {[%emt 00:11:03]} 44. Kc4
{[%emt 00:00:36]} h6 {[%emt 00:14:19]} 45. Bd4+ {[%emt 00:05:07]} Kf4 {[%emt
00:00:39]} 46. Bxg7 Kxf3 {[%emt 00:00:04]} 47. Bxh6 Kg3 {[%emt 00:03:10]} 48.
Bd2 {[%emt 00:05:08]} Kh4 {[%emt 00:01:10]} 49. Kb5 {[%emt 00:01:56]} Kxh3
{[%emt 00:02:33]} 50. g5 {[%emt 00:00:37]} Be5 {[%emt 00:00:18]} 51. Bxa5 {[%emt
00:01:25]} Kg4 {[%emt 00:00:04]} 52. Bd2 {[%emt 00:01:05]} Bd4 53. Kc4 {[%emt
00:01:36]} Be5 {[%emt 00:00:27]} 54. a5 Kf5 {[%emt 00:00:16]} 55. a6 {[%emt
00:01:25]} Bb8 56. Kb5 {[%emt 00:01:14]} Ba7 {[%emt 00:01:53]} 57. Kc6 {[%emt
00:00:30]} e5 {[%emt 00:00:31]} 58. Kb7 {[%emt 00:00:13]} 1-0

[Event "50+ Deutsche Senioren-Mannschaftsmeisterschaft der Landesverbände 2022"]
[Site "Magdeburg, Germany"]
[Date "2022.08.30"]
[Round "2.5"]
[White "Zimmermann, Klemens"]
[Black "Mueller, Ralf"]
[Result "1/2-1/2"]
[TimeControl "90min/40 + 30min + 30s/Zug"]
[WhiteElo "2242"]
[BlackElo "2352"]

1. d4 {[%emt 00:00:12]} d5 2. c4 {[%emt 00:00:35]} e6 {[%emt 00:00:10]} 3. Nf3
{[%emt 00:00:40]} Nf6 {[%emt 00:00:06]} 4. Bg5 {[%emt 00:00:35]} Be7 {[%emt
00:00:09]} 5. Nc3 {[%emt 00:00:07]} Nbd7 {[%emt 00:00:52]} 6. e3 {[%emt
00:03:09]} h6 {[%emt 00:00:16]} 7. Bh4 {[%emt 00:01:34]} O-O {[%emt 00:00:13]}
8. Bd3 {[%emt 00:02:21]} dxc4 {[%emt 00:00:26]} 9. Bxc4 {[%emt 00:00:06]} a6
{[%emt 00:00:35]} 10. Qe2 {[%emt 00:01:39]} b5 {[%emt 00:05:27]} 11. Bb3 {[%emt
00:00:42]} c5 12. O-O Bb7 {[%emt 00:02:38]} 13. Rfd1 {[%emt 00:01:39]} Ne4
{[%emt 00:21:37]} 14. Nxe4 {[%emt 00:05:15]} Bxe4 {[%emt 00:00:23]} 15. Bg3
{[%emt 00:03:24]} Qb6 {[%emt 00:01:15]} 16. Ne5 {[%emt 00:07:38]} Rfd8 {[%emt
00:15:27]} 17. Nxd7 {[%emt 00:05:48]} Rxd7 {[%emt 00:00:08]} 18. Be5 Bf8 {[%emt
00:09:58]} 19. dxc5 {[%emt 00:13:44]} Rxd1+ {[%emt 00:00:08]} 20. Rxd1 {[%emt
00:00:12]} Qxc5 {[%emt 00:00:13]} 21. Bc3 {[%emt 00:00:22]} Rc8 {[%emt
00:03:16]} 22. Qg4 {[%emt 00:10:00]} Qc6 {[%emt 00:02:37]} 23. f3 {[%emt
00:01:37]} Bg6 {[%emt 00:03:26]} 24. Qd4 {[%emt 00:03:17]} Qc7 {[%emt 00:06:39]}
25. Qd7 {[%emt 00:05:17]} Qxd7 {[%emt 00:02:55]} 26. Rxd7 {[%emt 00:00:05]} b4
{[%emt 00:00:22]} 27. Bd4 {[%emt 00:00:33]} Bc2 {[%emt 00:00:08]} 28. Ra7 {[%emt
00:09:54]} Bxb3 {[%emt 00:00:29]} 29. axb3 {[%emt 00:00:05]} Rc6 {[%emt
00:00:23]} 30. Kf1 {[%emt 00:01:00]} f6 {[%emt 00:00:36]} 31. f4 {[%emt
00:01:16]} Bd6 {[%emt 00:02:16]} 32. Rb7 {[%emt 00:01:29]} e5 {[%emt 00:08:35]}
33. fxe5 {[%emt 00:02:05]} fxe5 {[%emt 00:00:06]} 34. Ba7 {[%emt 00:00:18]} Rc1+
{[%emt 00:01:31]} 35. Ke2 {[%emt 00:00:27]} Rc2+ {[%emt 00:00:08]} 36. Kf3
{[%emt 00:01:12]} Rxb2 {[%emt 00:00:37]} 37. Rd7 {[%emt 00:06:42]} Bf8 {[%emt
00:00:50]} 38. Bb8 {[%emt 00:00:06]} e4+ {[%emt 00:01:46]} 39. Kxe4 {[%emt
00:00:26]} Rxg2 {[%emt 00:00:13]} 40. Be5 {[%emt 00:02:47]} Rg6 {[%emt
00:05:20]} 41. Kd5 {[%emt 00:02:11]} Rb6 {[%emt 00:00:58]} 42. Bd4 {[%emt
00:02:30]} Rb8 {[%emt 00:01:25]} 43. Ra7 {[%emt 00:02:31]} Rd8+ {[%emt
00:01:11]} 44. Ke5 {[%emt 00:00:30]} Re8+ {[%emt 00:09:14]} 45. Kd5 {[%emt
00:01:45]} Rd8+ {[%emt 00:00:05]} 46. Ke5 {[%emt 00:00:05]} 1/2-1/2

[Event "50+ Deutsche Senioren-Mannschaftsmeisterschaft der Landesverbände 2022"]
[Site "Magdeburg, Germany"]
[Date "2022.08.30"]
[Round "2.6"]
[White "Beyer, Christian"]
[Black "Krumm, Johannes"]
[Result "1-0"]
[TimeControl "90min/40 + 30min + 30s/Zug"]
[WhiteElo "2269"]
[BlackElo "2047"]

1. e4 {[%emt 00:00:09]} Nf6 {[%emt 00:01:04]} 2. Nc3 e5 {[%emt 00:00:59]} 3. Nf3
{[%emt 00:01:50]} Nc6 {[%emt 00:00:43]} 4. Bb5 {[%emt 00:00:15]} d6 {[%emt
00:05:31]} 5. d4 {[%emt 00:04:57]} exd4 {[%emt 00:00:27]} 6. Nxd4 {[%emt
00:01:14]} Bd7 {[%emt 00:00:32]} 7. Be3 {[%emt 00:05:40]} Nxd4 {[%emt 00:06:37]}
8. Qxd4 {[%emt 00:03:07]} a6 {[%emt 00:06:55]} 9. Bxd7+ {[%emt 00:05:53]} Qxd7
{[%emt 00:01:48]} 10. O-O-O {[%emt 00:00:47]} Qe6 {[%emt 00:16:02]} 11. Rhe1
{[%emt 00:02:52]} Be7 {[%emt 00:04:40]} 12. Nd5 {[%emt 00:12:21]} Bd8 {[%emt
00:02:24]} 13. Qb4 {[%emt 00:07:23]} Qc8 {[%emt 00:07:10]} 14. Bg5 {[%emt
00:00:23]} c5 {[%emt 00:11:31]} 15. Qc3 {[%emt 00:04:44]} Nxd5 {[%emt 00:01:47]}
16. exd5+ {[%emt 00:09:07]} Kf8 {[%emt 00:00:10]} 17. Bh6 {[%emt 00:00:22]} Rg8
{[%emt 00:02:19]} 18. Bf4 {[%emt 00:00:15]} Bc7 {[%emt 00:02:28]} 19. Re4 {[%emt
00:03:05]} g5 {[%emt 00:06:13]} 20. Bg3 {[%emt 00:00:21]} Qf5 {[%emt 00:03:36]}
21. Rde1 {[%emt 00:13:37]} Qg6 {[%emt 00:05:39]} 22. h4 {[%emt 00:04:01]} h6
{[%emt 00:01:15]} 23. Re7 {[%emt 00:00:38]} gxh4 {[%emt 00:02:51]} 24. Bxh4
{[%emt 00:02:07]} Rc8 {[%emt 00:01:37]} 25. Qf3 {[%emt 00:03:06]} Kg7 {[%emt
00:01:26]} 26. R1e6 {[%emt 00:00:56]} 1-0

[Event "50+ Deutsche Senioren-Mannschaftsmeisterschaft der Landesverbände 2022"]
[Site "Magdeburg, Germany"]
[Date "2022.08.30"]
[Round "2.7"]
[White "Freise, Helmut"]
[Black "Kottke, Markus, Dr."]
[Result "0-1"]
[TimeControl "90min/40 + 30min + 30s/Zug"]
[WhiteElo "2170"]
[BlackElo "2165"]

1. d4 {[%emt 00:00:44]} Nf6 {[%emt 00:01:12]} 2. c4 {[%emt 00:01:01]} g6 3. Nc3
Bg7 4. e3 {[%emt 00:00:39]} d6 {[%emt 00:01:00]} 5. Nf3 {[%emt 00:00:08]} O-O
{[%emt 00:00:23]} 6. Be2 {[%emt 00:01:13]} Nbd7 {[%emt 00:02:14]} 7. O-O {[%emt
00:01:42]} Re8 {[%emt 00:02:52]} 8. b4 {[%emt 00:08:10]} a5 {[%emt 00:01:39]} 9.
b5 {[%emt 00:05:08]} c5 {[%emt 00:03:07]} 10. bxc6 {[%emt 00:01:25]} bxc6 {[%emt
00:00:04]} 11. Ba3 {[%emt 00:00:32]} Ba6 {[%emt 00:01:57]} 12. Rc1 {[%emt
00:09:01]} Qc7 {[%emt 00:00:57]} 13. Qc2 {[%emt 00:10:19]} e5 {[%emt 00:03:37]}
14. Rfd1 {[%emt 00:04:28]} exd4 {[%emt 00:03:37]} 15. Rxd4 {[%emt 00:03:24]} c5
{[%emt 00:09:41]} 16. Rdd1 {[%emt 00:06:35]} Nb6 {[%emt 00:04:44]} 17. Na4
{[%emt 00:06:19]} Nxa4 {[%emt 00:02:29]} 18. Qxa4 Ne4 {[%emt 00:00:44]} 19. Rd3
{[%emt 00:09:30]} d5 {[%emt 00:06:45]} 20. Nd2 {[%emt 00:05:06]} Nxd2 {[%emt
00:07:32]} 21. Rxd2 {[%emt 00:00:18]} d4 {[%emt 00:00:15]} 22. exd4 {[%emt
00:02:23]} Bh6 {[%emt 00:00:04]} 23. Qd1 {[%emt 00:04:38]} cxd4 {[%emt
00:05:38]} 24. Rxd4 {[%emt 00:06:11]} Bxc1 {[%emt 00:03:15]} 25. Bxc1 {[%emt
00:00:06]} Rad8 {[%emt 00:01:02]} 26. Bf1 {[%emt 00:02:04]} Bxc4 {[%emt
00:08:27]} 27. Bb2 {[%emt 00:06:48]} Bxf1 {[%emt 00:00:41]} 28. Kxf1 {[%emt
00:00:12]} Qc4+ {[%emt 00:00:36]} 0-1

[Event "50+ Deutsche Senioren-Mannschaftsmeisterschaft der Landesverbände 2022"]
[Site "Magdeburg, Germany"]
[Date "2022.08.30"]
[Round "2.8"]
[White "Born, Mario"]
[Black "Baudner, Guntmar"]
[Result "1-0"]
[TimeControl "90min/40 + 30min + 30s/Zug"]
[WhiteElo "2198"]
[BlackElo "2041"]

1. d4 {[%emt 00:00:15]} d5 {[%emt 00:00:43]} 2. Nf3 {[%emt 00:00:04]} Nf6 {[%emt
00:00:17]} 3. g3 {[%emt 00:00:46]} e6 {[%emt 00:00:36]} 4. Bg2 {[%emt 00:01:06]}
Be7 {[%emt 00:00:46]} 5. O-O {[%emt 00:00:14]} O-O {[%emt 00:00:46]} 6. c4
{[%emt 00:00:14]} dxc4 {[%emt 00:03:31]} 7. Qa4 {[%emt 00:00:59]} Nbd7 {[%emt
00:02:15]} 8. Qxc4 {[%emt 00:00:31]} Nb6 {[%emt 00:00:38]} 9. Qc2 {[%emt
00:00:10]} h6 {[%emt 00:08:45]} 10. e4 {[%emt 00:02:16]} Re8 {[%emt 00:02:50]}
11. Bf4 {[%emt 00:01:09]} c6 {[%emt 00:00:36]} 12. Rd1 {[%emt 00:02:16]} Nbd7
{[%emt 00:02:48]} 13. Nc3 {[%emt 00:12:32]} Nf8 {[%emt 00:02:07]} 14. h3 {[%emt
00:03:32]} Ng6 {[%emt 00:01:55]} 15. Be3 {[%emt 00:00:52]} Qa5 {[%emt 00:04:11]}
16. a3 {[%emt 00:01:31]} Qc7 {[%emt 00:08:58]} 17. Rac1 {[%emt 00:08:16]} Bd7
{[%emt 00:03:06]} 18. Rd2 {[%emt 00:08:07]} a6 {[%emt 00:06:02]} 19. Qd1 {[%emt
00:03:28]} Rac8 {[%emt 00:04:39]} 20. Ne5 {[%emt 00:02:15]} Red8 {[%emt
00:03:05]} 21. Nxg6 {[%emt 00:02:31]} fxg6 22. Na4 {[%emt 00:02:39]} g5 {[%emt
00:06:14]} 23. d5 {[%emt 00:01:20]} Qb8 {[%emt 00:01:55]} 24. Nb6 {[%emt
00:01:07]} exd5 {[%emt 00:04:24]} 25. Nxc8 {[%emt 00:03:17]} Qxc8 {[%emt
00:02:27]} 26. exd5 {[%emt 00:01:16]} Bxh3 {[%emt 00:00:35]} 27. dxc6 {[%emt
00:02:15]} Rxd2 {[%emt 00:00:42]} 28. Qxd2 {[%emt 00:00:59]} Bxg2 {[%emt
00:00:21]} 29. Kxg2 {[%emt 00:00:13]} bxc6 {[%emt 00:00:50]} 30. Qc2 {[%emt
00:00:32]} Qb7 {[%emt 00:02:14]} 31. Qxc6 {[%emt 00:01:13]} Qxb2 {[%emt
00:00:37]} 32. Qe6+ {[%emt 00:00:56]} Kf8 {[%emt 00:01:34]} 33. Rc8+ {[%emt
00:01:07]} Ne8 {[%emt 00:00:16]} 34. Qc6 {[%emt 00:00:53]} Qb5 {[%emt 00:01:08]}
35. Rxe8+ {[%emt 00:00:14]} Kf7 36. Qxb5 {[%emt 00:00:30]} axb5 37. Ra8 {[%emt
00:00:11]} 1-0